[Event "Smuk Skak GM Tournament 2024"]
[Site "Skanderborg"]
[Date "2024.08.19"]
[Round "3.4"]
[White "Olsen, Filip Boe"]
[Black "Vinter-Schou, Uffe"]
[Result "0-1"]
[ECO "A56"]
[WhiteElo "2431"]
[BlackElo "2340"]
[Annotator "RC"]
[PlyCount "72"]
[EventDate "2024.08.11"]
[EventType "tourn"]
[EventCountry "DEN"]
[SourceTitle "playchess.com"]
[Source "ChessBase"]
[SourceQuality "1"]
[TimeControl "40/5400+30:1800+30"]

1. d4 {[%emt 0:00:03]} Nf6 {[%emt 0:01:19]} 2. c4 {[%emt 0:00:09]} c5 {[%emt 0:00:18]} 3. d5 {[%emt 0:00:01]} g6 {[%emt 0:00:08]} 4. Nc3 {[%emt 0:00:08]} Bg7 {[%emt 0:00:01]} 5. e4 {[%emt 0:00:23]} d6 {[%emt 0:00:02]} 6. Nf3 {[%emt 0:01:46]} O-O {[%emt 0:00:08]} 7. Be2 {[%emt 0:01:41]} e6 {[%emt 0:00:19]} 8. O-O {[%emt 0:00:18]} exd5 {[%emt 0:00:55]} 9. exd5 {[%emt 0:02:26]} Bf5 {[%emt 0:08:16]} 10. Bf4 {[%emt 0:15:41]} Ne4 {[%emt 0:14:55]} 11. Nxe4 {[%emt 0:01:22]} Bxe4 {[%emt 0:00:02]} 12. Nd2 {[%emt 0:13:49]} Re8 {[%emt 0:03:21]} 13. Nxe4 {[%emt 0:09:48]} Rxe4 {[%emt 0:00:06]} 14. Bg3 {[%emt 0:00:27]} Qc7 {[%emt 0:04:32]} 15. Qc2 {[%emt 0:09:05]} Re7 {[%emt 0:00:49]} 16. Bh4 {[%emt 0:02:30]} Re8 {[%emt 0:00:18]} 17. f4 {[%emt 0:01:01]} Nd7 {[%emt 0:01:16]} 18. f5 {[%emt 0:02:25]} Bd4+ {[%emt 0:20:22]} 19. Kh1 {[%emt 0:01:24]} Kg7 {[%emt 0:00:54]} 20. Bd3 {[%emt 0:09:01]} Bf6 {[%emt 0:08:32]} 21. fxg6 {[%emt 0:08:00]} hxg6 {[%emt 0:02:50]} 22. Bxf6+ {[%emt 0:02:13]} Nxf6 {[%emt 0:00:07]} 23. Qf2 {[%emt 0:00:07]} Ng4 {[%emt 0:01:08]} 24. Qf4 {[%emt 0:01:41]} Qd7 {[%emt 0:02:43]} 25. h3 {[%emt 0:01:50]} Ne5 {[%emt 0:01:53]} 26. Bc2 {[%emt 0:00:43]} Qe7 {[%emt 0:01:02]} 27. Rae1 {[%emt 0:01:06]} Rh8 {[%emt 0:01:51]} 28. b3 {[%emt 0:02:44]} Rh4 {[%emt 0:02:24]} 29. Qg3 {[%emt 0:00:05]} Rah8 {[%emt 0:01:30]} 30. Re3 {[%emt 0:01:16]} Rd4 {[%emt 0:02:45]} 31. Qf2 {[%emt 0:01:35]} Qh4 {[%emt 0:03:37]} 32. Qe2 {[%emt 0:00:13]} Rh5 {[%emt 0:08:15]} 33. Kg1 {[%emt 0:01:09]} Rf4 {[%emt 0:06:16]} 34. Re1 {[%emt 0:00:54]} Ng4 {[%emt 0:02:45]} 35. Re7 {[%emt 0:09:21]} Qg3 {[%emt 0:00:20]} 36. Qxg4 {[%emt 0:00:43]} Qf2+ {[%emt 0:00:35]} 0-1

[Event "Smuk Skak GM Tournament 2024"]
[Site "Skanderborg"]
[Date "2024.08.19"]
[Round "3.5"]
[White "Licznerski, Lukasz"]
[Black "Kanov, Nikola"]
[Result "1-0"]
[ECO "C19"]
[WhiteElo "2427"]
[BlackElo "2414"]
[Annotator "RC"]
[PlyCount "81"]
[EventDate "2024.08.11"]
[EventType "tourn"]
[EventCountry "DEN"]
[SourceTitle "playchess.com"]
[Source "ChessBase"]
[SourceQuality "1"]
[TimeControl "40/5400+30:1800+30"]

1. e4 {[%emt 0:00:03]} e6 {[%emt 0:00:12]} 2. d4 {[%emt 0:00:07]} d5 {[%emt 0:00:06]} 3. Nc3 {[%emt 0:00:06]} Bb4 {[%emt 0:00:14]} 4. e5 {[%emt 0:00:08]} c5 {[%emt 0:00:12]} 5. a3 {[%emt 0:00:03]} Bxc3+ {[%emt 0:00:26]} 6. bxc3 {[%emt 0:00:03]} Ne7 {[%emt 0:00:13]} 7. Qg4 {[%emt 0:00:02]} Qc7 {[%emt 0:00:31]} 8. Qxg7 {[%emt 0:00:07]} Rg8 {[%emt 0:00:09]} 9. Qxh7 {[%emt 0:00:05]} cxd4 {[%emt 0:00:11]} 10. Ne2 {[%emt 0:00:02]} dxc3 {[%emt 0:00:13]} 11. h4 {[%emt 0:00:48]} Qxe5 {[%emt 0:14:01]} 12. Bf4 {[%emt 0:03:30]} Qh8 {[%emt 0:06:11]} 13. Qxh8 {[%emt 0:00:32]} Rxh8 {[%emt 0:00:05]} 14. Nxc3 {[%emt 0:00:32]} Bd7 {[%emt 0:20:28]} 15. Rb1 {[%emt 0:04:26]} b6 {[%emt 0:03:25]} 16. Nb5 {[%emt 0:00:23]} Bxb5 {[%emt 0:00:53]} 17. Bxb5+ {[%emt 0:00:07]} Nbc6 {[%emt 0:06:05]} 18. c4 {[%emt 0:02:44]} f6 {[%emt 0:09:06]} 19. cxd5 {[%emt 0:08:37]} exd5 {[%emt 0:00:14]} 20. Rc1 {[%emt 0:02:31]} Rc8 {[%emt 0:03:38]} 21. h5 {[%emt 0:01:31]} Kf7 {[%emt 0:00:54]} 22. g4 {[%emt 0:11:00]} Nd4 {[%emt 0:05:32]} 23. Rxc8 {[%emt 0:00:58]} Rxc8 {[%emt 0:00:37]} 24. Bd3 {[%emt 0:00:14]} Rh8 {[%emt 0:14:01]} 25. Kd1 {[%emt 0:08:46]} Rg8 {[%emt 0:03:02]} 26. h6 {[%emt 0:02:26]} Ne6 {[%emt 0:02:30]} 27. Be3 {[%emt 0:00:58]} Ng6 {[%emt 0:01:04]} 28. Bf5 {[%emt 0:01:38]} Ne5 {[%emt 0:05:12]} 29. f4 {[%emt 0:12:26]} Nc6 {[%emt 0:01:03]} 30. g5 {[%emt 0:03:16]} fxg5 {[%emt 0:02:35]} 31. fxg5 {[%emt 0:00:34]} Nf8 {[%emt 0:00:18]} 32. h7 {[%emt 0:02:55]} Rh8 {[%emt 0:00:08]} 33. Rh6 {[%emt 0:00:12]} Ne7 {[%emt 0:00:42]} 34. Bb1 {[%emt 0:00:03]} Nfg6 {[%emt 0:02:29]} 35. Bd4 {[%emt 0:00:15]} Rc8 {[%emt 0:00:41]} 36. h8=Q {[%emt 0:00:43]} Nxh8 {[%emt 0:00:10]} 37. Bxh8 {[%emt 0:00:26]} Rc4 {[%emt 0:00:44]} 38. g6+ {[%emt 0:00:52]} Ke6 {[%emt 0:00:29]} 39. g7+ {[%emt 0:00:20]} Kd7 {[%emt 0:00:32]} 40. Bf5+ {[%emt 0:00:30]} Kc7 {[%emt 0:00:43]} 41. Re6 1-0

[Event "Smuk Skak GM Tournament 2024"]
[Site "Skanderborg"]
[Date "2024.08.20"]
[Round "4.1"]
[White "Pajeken, Jakob Leon"]
[Black "Kosakowski, Jakub"]
[Result "1/2-1/2"]
[ECO "B15"]
[WhiteElo "2416"]
[BlackElo "2501"]
[Annotator "TA"]
[PlyCount "140"]
[EventDate "2024.08.11"]
[EventType "tourn"]
[EventCountry "DEN"]
[SourceTitle "playchess.com"]
[Source "ChessBase"]
[SourceQuality "1"]
[TimeControl "40/5400+30:1800+30"]

{[%evp 24,139,48,0,0,-22,-31,-43,-35,-42,-30,-52,-47,-47,-17,-41,-34,-42,-22,-16,-16,-9,0,-65,-62,-64,-64,-58,-57,-54,-55,-130,-54,-54,-54,-54,-49,-49,-47,-67,-54,-54,-54,-63,-63,-63,-63,-63,-63,-63,-63,-63,-63,-63,-63,-67,-67,-67,-47,-67,-47,-47,-47,-67,-47,-72,-47,-47,-47,-47,-47,-47,-47,-48,-48,-48,-47,-47,-47,-47,-47,-47,-47,-47,-47,-47,-42,-47,-42,-42,-42,-47,-42,-47,-42,-60,-18,-18,-18,-18,-18,-18,-18,-18,-18,-25,-25,-25,-25,-25,-25,-25,-25,-25,-25,-25,0,0]} 1. e4 {[%emt 0:00:06]} c6 {[%emt 0:00:35]} 2. d4 {[%emt 0:00:05]} d5 {[%emt 0:00:10]} 3. Nd2 {[%emt 0:00:06]} dxe4 {[%emt 0:00:15]} 4. Nxe4 {[%emt 0:00:03]} Nf6 {[%emt 0:00:58]} 5. Nxf6+ {[%emt 0:00:35]} exf6 {[%emt 0:00:08]} 6. Bc4 {[%emt 0:00:18]} Na6 {[%emt 0:03:38] B15: Caro-Kann: 3 Nc3: 3...g6 and 3...dxe4 4 Nxe4 Nf6 5 Nxf6+ exf6.} 7. Ne2 {[%emt 0:06:24]} Bd6 {[%emt 0:04:30]} 8. O-O {[%emt 0:05:51]} O-O {[%emt 0:00:28]} 9. Bxa6 {[%emt 0:01:49]} bxa6 {[%emt 0:00:08]} 10. Bf4 {[%emt 0:01:28]} Be7 {[%emt 0:05:10]} 11. Qd3 $146 {[%emt 0:04:14]} ({Predecessor:} 11. Qd2 Re8 12. c4 Be6 13. b3 Qb6 14. c5 Qb7 15. Ng3 f5 16. Rad1 Rad8 17. Qc3 {½-½ Maceda,C (2011)-Markus,R (2095) FICGS class A 000086 email 2011 (1)}) 11... Qa5 {[%emt 0:02:57]} 12. Ng3 {[%emt 0:04:50]} Be6 {[%emt 0:01:19]} 13. Bd2 {[%emt 0:10:14]} (13. c4 $14) 13... Qb5 $11 {[%emt 0:00:54]} 14. Qxb5 {[%emt 0:00:44]} axb5 {[%emt 0:00:33]} 15. Rfe1 {[%emt 0:06:02]} Rfd8 {[%emt 0:02:18]} 16. c3 {[%emt 0:01:11]} a5 {[%emt 0:05:38]} 17. a3 {[%emt 0:01:16]} Bf8 {[%emt 0:02:40]} 18. Bf4 {[%emt 0:03:09]} b4 {[%emt 0:16:22]} 19. Ne4 {[%emt 0:01:40]} bxc3 {[%emt 0:03:25]} 20. bxc3 {[%emt 0:00:07]} a4 {[%emt 0:03:15]} 21. Bc7 {[%emt 0:03:44]} Rd5 {[%emt 0:12:37]} 22. Bb6 $1 {[%emt 0:00:33]} Bf5 {[%emt 0:11:10]} 23. Bc5 {[%emt 0:07:15]} (23. Nc5 $1 $11) 23... Bxe4 $15 {[%emt 0:00:40]} 24. Bxf8 {[%emt 0:00:21]} Kxf8 {[%emt 0:02:34]} ({Much weaker is} 24... Bxg2 25. Bxg7 Kxg7 26. Kxg2 $11) 25. Rxe4 {[%emt 0:00:06]} Rb5 {[%emt 0:00:08]} 26. c4 {[%emt 0:04:05]} Rb3 {[%emt 0:00:08]} 27. d5 {[%emt 0:02:39] [#]} ({Better is} 27. g3 $15) 27... cxd5 {[%emt 0:00:25]} (27... Re8 $1 $17 {[%cal Re8e4]} 28. Rh4 (28. Rxe8+ $2 Kxe8 29. h4 Kd7 $19) 28... Rxa3) 28. cxd5 $15 {[%emt 0:00:03]} Rd3 {[%emt 0:00:34]} 29. g3 {[%emt 0:00:29]} f5 {[%emt 0:03:43]} 30. Rb4 {[%emt 0:04:42]} g6 {[%emt 0:03:26]} 31. Rc1 {[%emt 0:02:36]} Ra7 {[%emt 0:00:52]} 32. d6 {[%emt 0:00:52]} Rxd6 {[%emt 0:00:38]} (32... Rxa3 $2 {is the wrong capture.} 33. Rb8+ Kg7 34. Rc7 $18) 33. Rcc4 {[%emt 0:00:08]} Rd3 {[%emt 0:00:11]} 34. Rxa4 {[%emt 0:00:23]} Rxa3 {[%emt 0:00:05]} 35. Rxa7 {[%emt 0:00:08]} Rxa7 {[%emt 0:00:04]} 36. h4 {[%emt 0:00:07]} Kg7 {[%emt 0:00:50]} 37. Kg2 {[%emt 0:00:29]} Ra2 {[%emt 0:03:58]} 38. Rb4 {[%emt 0:00:48]} Re2 {[%emt 0:00:51]} 39. Kf3 {[%emt 0:00:18]} Re1 {[%emt 0:00:06]} 40. Ra4 {[%emt 0:00:19]} h6 {[%emt 0:00:19]} 41. Ra5 {[%emt 0:30:59]} Kf6 {[%emt 0:30:37]} 42. Ra6+ {[%emt 0:00:23]} Re6 {[%emt 0:00:06]} 43. Ra5 {[%emt 0:00:17]} g5 {[%emt 0:00:52]} 44. Ra4 {[%emt 0:00:45]} Kg6 {[%emt 0:00:16]} 45. hxg5 {[%emt 0:00:23]} hxg5 {[%emt 0:00:05]} 46. Ra5 {[%emt 0:00:15]} Rb6 {[%emt 0:02:29]} 47. Ra4 {[%emt 0:00:21]} Rc6 {[%emt 0:03:15]} 48. Rb4 {[%emt 0:00:30]} Ra6 {[%emt 0:00:14]} 49. Rb5 {[%emt 0:00:14]} Ra4 {[%emt 0:01:31]} 50. Rb6+ {[%emt 0:00:30]} f6 {[%emt 0:00:05]} 51. Rb5 {[%emt 0:00:35]} Re4 {[%emt 0:02:32]} 52. Rb8 {[%emt 0:00:47]} Re1 {[%emt 0:00:23]} 53. Kg2 {[%emt 0:00:40]} Rd1 {[%emt 0:00:26]} 54. Rb4 {[%emt 0:00:29]} Kf7 {[%emt 0:00:17]} 55. Rb6 {[%emt 0:00:10]} Ke7 {[%emt 0:00:09]} 56. Kf3 {[%emt 0:00:18]} Rd3+ {[%emt 0:00:17]} 57. Kg2 {[%emt 0:00:14]} Rd6 {[%emt 0:00:06]} 58. Rb8 {[%emt 0:00:10]} Rd4 {[%emt 0:00:18]} 59. Rb6 {[%emt 0:00:20]} f4 {[%emt 0:00:49]} 60. gxf4 {[%emt 0:00:21]} Rxf4 {[%emt 0:00:30]} 61. Kg3 {[%emt 0:00:17]} Kf7 {[%emt 0:00:07]} 62. Ra6 {[%emt 0:00:26]} Kg6 {[%emt 0:00:19]} 63. Rb6 {[%emt 0:00:12]} Ra4 {[%emt 0:00:14]} 64. Rb5 {[%emt 0:00:43]} f5 {[%emt 0:00:30]} 65. f3 {[%emt 0:00:39]} Ra3 {[%emt 0:00:24]} 66. Kg2 {[%emt 0:01:32]} Ra2+ {[%emt 0:00:23]} 67. Kh3 {[%emt 0:00:09]} Kf6 {[%emt 0:00:20]} 68. Kg3 {[%emt 0:01:06]} f4+ {[%emt 0:02:09]} 69. Kh3 $1 {[%emt 0:00:09]} Rf2 {[%emt 0:00:28]} 70. Rf5+ {[%emt 0:00:38]} Kxf5 {[%emt 0:00:37]} 1/2-1/2

[Event "Smuk Skak GM Tournament 2024"]
[Site "Skanderborg"]
[Date "2024.08.20"]
[Round "4.2"]
[White "Solodovnichenko, Yuri"]
[Black "Fromm, Marius"]
[Result "0-1"]
[ECO "B40"]
[WhiteElo "2491"]
[BlackElo "2447"]
[Annotator "RC"]
[PlyCount "106"]
[EventDate "2024.08.11"]
[EventType "tourn"]
[EventCountry "DEN"]
[SourceTitle "playchess.com"]
[Source "ChessBase"]
[SourceQuality "1"]
[TimeControl "40/5400+30:1800+30"]

1. e4 {[%emt 0:00:02]} c5 {[%emt 0:00:06]} 2. Nf3 {[%emt 0:00:04]} e6 {[%emt 0:00:04]} 3. g3 {[%emt 0:01:01]} Nc6 {[%emt 0:01:07]} 4. Bg2 {[%emt 0:00:06]} Nf6 {[%emt 0:01:06]} 5. d3 {[%emt 0:00:13]} d5 {[%emt 0:01:06]} 6. Qe2 {[%emt 0:00:11]} Be7 {[%emt 0:00:35]} 7. e5 {[%emt 0:02:54]} Nd7 {[%emt 0:00:21]} 8. c4 {[%emt 0:00:32]} a6 {[%emt 0:05:30]} 9. a4 {[%emt 0:02:14]} O-O {[%emt 0:13:31]} 10. O-O {[%emt 0:00:35]} Nb4 {[%emt 0:03:34]} 11. Nc3 {[%emt 0:14:00]} Nb8 {[%emt 0:03:09]} 12. d4 {[%emt 0:03:01]} dxc4 {[%emt 0:05:07]} 13. Be3 {[%emt 0:00:44]} N8c6 {[%emt 0:11:23]} 14. Rfd1 {[%emt 0:09:19]} Nd3 {[%emt 0:15:58]} 15. dxc5 {[%emt 0:00:56]} Qc7 {[%emt 0:02:03]} 16. Nd2 {[%emt 0:26:44]} Ncxe5 {[%emt 0:02:50]} 17. f4 {[%emt 0:04:36]} Nc6 {[%emt 0:11:38]} 18. Nxc4 {[%emt 0:01:00]} Nxc5 {[%emt 0:00:04]} 19. Ne4 {[%emt 0:03:43]} Nxe4 {[%emt 0:08:08]} 20. Bxe4 {[%emt 0:00:21]} Bb4 {[%emt 0:00:41]} 21. Nb6 {[%emt 0:06:36]} Rb8 {[%emt 0:00:09]} 22. Rac1 {[%emt 0:00:17]} g6 {[%emt 0:01:55]} 23. Qc4 {[%emt 0:06:56]} a5 {[%emt 0:01:34]} 24. Bf3 {[%emt 0:04:45]} Rd8 {[%emt 0:01:13]} 25. Rxd8+ {[%emt 0:02:32]} Qxd8 {[%emt 0:00:01]} 26. Rd1 {[%emt 0:01:50]} Qf8 {[%emt 0:01:19]} 27. Qb5 {[%emt 0:01:59]} Qe8 {[%emt 0:03:48]} 28. Bc5 {[%emt 0:02:04]} Bxc5+ {[%emt 0:02:15]} 29. Qxc5 {[%emt 0:00:02]} e5 {[%emt 0:01:15]} 30. Nd5 {[%emt 0:02:43]} Kg7 {[%emt 0:00:26]} 31. Nc7 {[%emt 0:01:03]} Qf8 {[%emt 0:00:25]} 32. Qb5 {[%emt 0:01:13]} Qe7 {[%emt 0:02:16]} 33. Nd5 {[%emt 0:01:14]} Qd6 {[%emt 0:00:01]} 34. Nc3 {[%emt 0:01:28]} Nd4 {[%emt 0:00:40]} 35. Qd5 {[%emt 0:00:24]} Nxf3+ {[%emt 0:00:31]} 36. Qxf3 {[%emt 0:00:02]} Qc5+ {[%emt 0:00:43]} 37. Qf2 {[%emt 0:00:09]} Qxf2+ {[%emt 0:01:00]} 38. Kxf2 {[%emt 0:00:01]} Bg4 {[%emt 0:00:27]} 39. Rd5 {[%emt 0:00:06]} exf4 {[%emt 0:00:04]} 40. gxf4 {[%emt 0:00:27]} b6 {[%emt 0:00:44]} 41. Rd6 {[%emt 0:30:09]} Be6 {[%emt 0:03:36]} 42. Kg3 {[%emt 0:00:00]} Kf8 {[%emt 0:01:22]} 43. Nd5 {[%emt 0:00:00]} b5 {[%emt 0:04:02]} 44. Nc7 {[%emt 0:00:00]} bxa4 {[%emt 0:07:10]} 45. Nxe6+ {[%emt 0:00:00]} fxe6 {[%emt 0:00:56]} 46. Rxe6 {[%emt 0:00:00]} Rb3+ {[%emt 0:08:58]} 47. Kg4 {[%emt 0:00:00]} Rxb2 {[%emt 0:00:05]} 48. Re5 {[%emt 0:00:00]} a3 {[%emt 0:02:23]} 49. Rxa5 {[%emt 0:00:00]} a2 {[%emt 0:00:03]} 50. h3 {[%emt 0:00:00]} h5+ {[%emt 0:01:11]} 51. Kh4 {[%emt 0:00:00]} Ke7 {[%emt 0:01:21]} 52. Ra6 {[%emt 0:00:00]} Rg2 {[%emt 0:00:32]} 53. Ra3 {[%emt 0:00:00]} Kd6 {[%emt 0:00:29]} 0-1

[Event "Smuk Skak GM Tournament 2024"]
[Site "Skanderborg"]
[Date "2024.08.20"]
[Round "4.3"]
[White "Thybo, Jesper Sondergaard"]
[Black "Olsen, Filip Boe"]
[Result "0-1"]
[ECO "A13"]
[WhiteElo "2554"]
[BlackElo "2431"]
[Annotator "RC"]
[PlyCount "72"]
[EventDate "2024.08.11"]
[EventType "tourn"]
[EventCountry "DEN"]
[SourceTitle "playchess.com"]
[Source "ChessBase"]
[SourceQuality "1"]
[TimeControl "40/5400+30:1800+30"]

1. c4 {[%emt 0:00:06]} e6 {[%emt 0:00:09]} 2. Nf3 {[%emt 0:00:17]} d5 {[%emt 0:00:11]} 3. g3 {[%emt 0:00:17]} d4 {[%emt 0:00:16]} 4. Bg2 {[%emt 0:03:04]} c5 {[%emt 0:00:11]} 5. O-O {[%emt 0:00:59]} Nc6 {[%emt 0:00:10]} 6. e3 {[%emt 0:00:42]} Nf6 {[%emt 0:00:13]} 7. exd4 {[%emt 0:01:41]} cxd4 {[%emt 0:00:03]} 8. d3 {[%emt 0:00:12]} h6 {[%emt 0:00:09]} 9. Na3 {[%emt 0:04:13]} Bxa3 {[%emt 0:00:18]} 10. bxa3 {[%emt 0:00:12]} O-O {[%emt 0:00:09]} 11. Re1 {[%emt 0:01:13]} Re8 {[%emt 0:00:35]} 12. Ne5 {[%emt 0:11:57]} Nxe5 {[%emt 0:00:46]} 13. Rxe5 {[%emt 0:00:11]} Nd7 {[%emt 0:01:40]} 14. Rh5 {[%emt 0:08:09]} e5 {[%emt 0:13:05]} 15. Bxh6 {[%emt 0:14:38]} gxh6 {[%emt 0:06:38]} 16. Qg4+ {[%emt 0:00:18]} Kf8 {[%emt 0:00:13]} 17. Rxh6 {[%emt 0:00:28]} Nf6 {[%emt 0:06:59]} 18. Rh8+ {[%emt 0:00:38]} Ke7 {[%emt 0:00:07]} 19. Rxe8+ {[%emt 0:00:15]} Nxe8 {[%emt 0:09:50]} 20. Qh5 {[%emt 0:09:50]} Qd6 {[%emt 0:10:37]} 21. Re1 {[%emt 0:07:07]} Nf6 {[%emt 0:04:03]} 22. Rxe5+ {[%emt 0:22:21]} Be6 {[%emt 0:00:10]} 23. Qf5 {[%emt 0:03:44]} Rh8 {[%emt 0:03:57]} 24. Qf4 {[%emt 0:01:34]} Rh5 {[%emt 0:02:45]} 25. Rg5 {[%emt 0:02:29]} Qxf4 {[%emt 0:01:12]} 26. gxf4 {[%emt 0:00:04]} b6 {[%emt 0:01:02]} 27. Bf3 {[%emt 0:02:13]} Rh4 {[%emt 0:00:41]} 28. Kg2 {[%emt 0:02:01]} Rxf4 {[%emt 0:00:51]} 29. Kg3 {[%emt 0:00:42]} Rf5 {[%emt 0:00:13]} 30. h4 {[%emt 0:00:12]} Nd7 {[%emt 0:03:51]} 31. Be4 {[%emt 0:01:51]} Rxg5+ {[%emt 0:13:30]} 32. hxg5 {[%emt 0:00:05]} f5 {[%emt 0:00:45]} 33. gxf6+ {[%emt 0:02:41]} Kxf6 {[%emt 0:00:12]} 34. Kf4 {[%emt 0:00:34]} Nc5 {[%emt 0:00:15]} 35. Bh7 {[%emt 0:00:27]} Bd7 {[%emt 0:00:41]} 36. Be4 {[%emt 0:00:33]} Ba4 {[%emt 0:00:13]} 0-1

[Event "Smuk Skak GM Tournament 2024"]
[Site "Skanderborg"]
[Date "2024.08.20"]
[Round "4.4"]
[White "Vinter-Schou, Uffe"]
[Black "Licznerski, Lukasz"]
[Result "1/2-1/2"]
[ECO "A15"]
[WhiteElo "2340"]
[BlackElo "2427"]
[Annotator "RC"]
[PlyCount "235"]
[EventDate "2024.08.11"]
[EventType "tourn"]
[EventCountry "DEN"]
[SourceTitle "playchess.com"]
[Source "ChessBase"]
[SourceQuality "1"]
[TimeControl "40/5400+30:1800+30"]

1. Nf3 {[%emt 0:00:04]} Nf6 {[%emt 0:03:32]} 2. c4 {[%emt 0:00:19]} g6 {[%emt 0:00:03]} 3. Nc3 {[%emt 0:05:29]} Bg7 {[%emt 0:00:23]} 4. e4 {[%emt 0:02:43]} O-O {[%emt 0:00:12]} 5. d4 {[%emt 0:00:05]} d6 {[%emt 0:00:02]} 6. h3 {[%emt 0:01:10]} e5 {[%emt 0:04:25]} 7. d5 {[%emt 0:03:09]} Nh5 {[%emt 0:00:58]} 8. Be3 {[%emt 0:05:02]} f5 {[%emt 0:03:42]} 9. exf5 {[%emt 0:00:22]} gxf5 {[%emt 0:00:17]} 10. g3 {[%emt 0:12:02]} Qe8 {[%emt 0:07:00]} 11. Be2 {[%emt 0:11:28]} f4 {[%emt 0:00:56]} 12. gxf4 {[%emt 0:01:25]} Nxf4 {[%emt 0:00:03]} 13. Rg1 {[%emt 0:02:16]} Bxh3 {[%emt 0:11:43]} 14. Ng5 {[%emt 0:01:13]} Bf5 {[%emt 0:10:03]} 15. Nge4 {[%emt 0:06:11]} Nd7 {[%emt 0:05:21]} 16. Bf3 {[%emt 0:06:40]} Nf6 {[%emt 0:06:32]} 17. Qd2 {[%emt 0:00:43]} Nxe4 {[%emt 0:00:38]} 18. Nxe4 {[%emt 0:01:16]} Bg6 {[%emt 0:00:27]} 19. Bh1 {[%emt 0:06:49]} Qa4 {[%emt 0:11:44]} 20. b3 {[%emt 0:02:16]} Qa3 {[%emt 0:00:08]} 21. Qc3 {[%emt 0:09:54]} a5 {[%emt 0:02:22]} 22. Rg3 {[%emt 0:03:13]} b5 {[%emt 0:09:36]} 23. Bd2 {[%emt 0:09:26]} bxc4 {[%emt 0:03:31]} 24. bxc4 {[%emt 0:00:46]} Qa4 {[%emt 0:02:51]} 25. Qb3 {[%emt 0:01:20]} Qd7 {[%emt 0:00:02]} 26. Rb1 {[%emt 0:00:18]} a4 {[%emt 0:01:00]} 27. Qb5 {[%emt 0:02:28]} Qe7 {[%emt 0:00:03]} 28. Be3 {[%emt 0:03:40]} Bh6 {[%emt 0:04:12]} 29. Kd2 {[%emt 0:00:20]} Qg7 {[%emt 0:00:28]} 30. Bf3 {[%emt 0:00:48]} Qe7 {[%emt 0:01:57]} 31. Qc6 {[%emt 0:00:23]} Rab8 {[%emt 0:03:13]} 32. Rb7 {[%emt 0:00:59]} Rxb7 {[%emt 0:00:13]} 33. Qxb7 {[%emt 0:00:02]} Qd8 {[%emt 0:02:15]} 34. a3 {[%emt 0:02:24]} Kh8 {[%emt 0:01:10]} 35. Qb4 {[%emt 0:00:37]} Qa8 {[%emt 0:00:42]} 36. Nc3 {[%emt 0:00:24]} Nd3 {[%emt 0:04:59]} 37. Qxa4 {[%emt 0:00:24]} Bxe3+ {[%emt 0:00:02]} 38. fxe3 {[%emt 0:00:34]} Qxa4 {[%emt 0:00:27]} 39. Nxa4 {[%emt 0:00:02]} Ra8 {[%emt 0:00:06]} 40. Nc3 {[%emt 0:00:47]} Nb2 {[%emt 0:01:58]} 41. Be4 {[%emt 0:19:31]} Bxe4 {[%emt 0:08:03]} 42. Nxe4 {[%emt 0:00:02]} Nxc4+ {[%emt 0:00:05]} 43. Kd3 {[%emt 0:03:53]} Nb6 {[%emt 0:00:31]} 44. Ng5 {[%emt 0:00:09]} h6 {[%emt 0:02:22]} 45. Ne6 {[%emt 0:00:20]} Nxd5 {[%emt 0:01:03]} 46. Ke4 {[%emt 0:00:11]} Nf6+ {[%emt 0:02:47]} 47. Kf5 {[%emt 0:00:22]} Nh5 {[%emt 0:00:01]} 48. Rg4 {[%emt 0:04:59]} Kh7 {[%emt 0:03:53]} 49. Nxc7 {[%emt 0:00:39]} Rxa3 {[%emt 0:00:26]} 50. Nd5 {[%emt 0:00:07]} Rd3 {[%emt 0:10:55]} 51. e4 {[%emt 0:00:02]} Rf3+ {[%emt 0:00:05]} 52. Ke6 {[%emt 0:00:05]} Nf4+ {[%emt 0:00:06]} 53. Kxd6 {[%emt 0:00:25]} Ng6 {[%emt 0:00:01]} 54. Ke6 {[%emt 0:01:03]} h5 {[%emt 0:00:02]} 55. Rg5 {[%emt 0:02:41]} h4 {[%emt 0:02:23]} 56. Nf6+ {[%emt 0:02:06]} Kg7 {[%emt 0:00:14]} 57. Ng4 {[%emt 0:00:01]} Rf8 {[%emt 0:00:59]} 58. Ne3 {[%emt 0:01:54]} Rf6+ {[%emt 0:00:58]} 59. Kd5 {[%emt 0:00:05]} Kh6 {[%emt 0:00:30]} 60. Rg1 {[%emt 0:00:27]} Kg7 {[%emt 0:03:20]} 61. Nf5+ {[%emt 0:00:11]} Kf7 {[%emt 0:00:22]} 62. Rh1 {[%emt 0:01:02]} h3 {[%emt 0:00:11]} 63. Nh6+ {[%emt 0:01:18]} Kg7 {[%emt 0:00:58]} 64. Ng4 {[%emt 0:00:44]} Rf8 {[%emt 0:01:51]} 65. Nxe5 {[%emt 0:00:40]} Rd8+ {[%emt 0:00:21]} 66. Kc5 {[%emt 0:00:14]} Nxe5 {[%emt 0:00:17]} 67. Rxh3 {[%emt 0:00:02]} Kf6 {[%emt 0:00:17]} 68. Rh5 {[%emt 0:00:17]} Rd1 {[%emt 0:00:11]} 69. Rf5+ {[%emt 0:00:31]} Ke6 {[%emt 0:00:01]} 70. Rh5 {[%emt 0:00:28]} Nd7+ {[%emt 0:00:02]} 71. Kc4 {[%emt 0:00:42]} Nf6 {[%emt 0:00:02]} 72. Ra5 {[%emt 0:00:50]} Nxe4 {[%emt 0:00:15]} 73. Ra6+ {[%emt 0:00:02]} Nd6+ {[%emt 0:00:06]} 74. Kc3 {[%emt 0:00:11]} Rd5 {[%emt 0:00:38]} 75. Ra1 {[%emt 0:00:14]} Ke5 {[%emt 0:01:36]} 76. Ra8 {[%emt 0:00:19]} Ne4+ {[%emt 0:00:11]} 77. Kc4 {[%emt 0:00:11]} Rd4+ {[%emt 0:00:10]} 78. Kb3 {[%emt 0:00:33]} Rd3+ {[%emt 0:00:28]} 79. Kc2 {[%emt 0:00:33]} Rc3+ {[%emt 0:01:06]} 80. Kb2 {[%emt 0:00:04]} Rc7 {[%emt 0:00:08]} 81. Rd8 {[%emt 0:00:25]} Nd6 {[%emt 0:01:28]} 82. Kb3 {[%emt 0:00:23]} Rc6 {[%emt 0:00:02]} 83. Rh8 {[%emt 0:01:21]} Kd4 {[%emt 0:00:06]} 84. Rd8 {[%emt 0:00:19]} Kd3 {[%emt 0:01:39]} 85. Kb4 {[%emt 0:00:02]} Rc4+ {[%emt 0:00:03]} 86. Kb3 {[%emt 0:00:22]} Rd4 {[%emt 0:00:06]} 87. Rd7 {[%emt 0:01:13]} Rd5 {[%emt 0:00:02]} 88. Kb4 {[%emt 0:01:11]} Kd4 {[%emt 0:00:40]} 89. Kb3 {[%emt 0:00:23]} Rb5+ {[%emt 0:01:31]} 90. Kc2 {[%emt 0:00:03]} Rb6 {[%emt 0:00:04]} 91. Rd8 {[%emt 0:00:27]} Ke3 {[%emt 0:00:17]} 92. Rh8 {[%emt 0:00:34]} Rc6+ {[%emt 0:00:20]} 93. Kb3 {[%emt 0:00:11]} Kd3 {[%emt 0:00:05]} 94. Rb8 {[%emt 0:00:47]} Nf5 {[%emt 0:00:18]} 95. Kb4 {[%emt 0:00:50]} Nd4 {[%emt 0:00:05]} 96. Rh8 {[%emt 0:01:05]} Rc4+ {[%emt 0:01:13]} 97. Ka5 {[%emt 0:00:02]} Rc5+ {[%emt 0:02:35]} 98. Kb6 {[%emt 0:00:09]} Rc6+ {[%emt 0:00:01]} 99. Kb7 {[%emt 0:00:17]} Rg6 {[%emt 0:00:02]} 100. Rc8 {[%emt 0:00:36]} Ne6 {[%emt 0:00:28]} 101. Kb6 {[%emt 0:00:47]} Kd4 {[%emt 0:00:06]} 102. Kb5 {[%emt 0:00:29]} Rg1 {[%emt 0:00:16]} 103. Rh8 {[%emt 0:00:38]} Rg4 {[%emt 0:02:29]} 104. Rh5 {[%emt 0:00:35]} Nf4 {[%emt 0:00:15]} 105. Rh6 {[%emt 0:00:17]} Nd5 {[%emt 0:00:10]} 106. Rh5 {[%emt 0:00:39]} Nc3+ {[%emt 0:00:21]} 107. Kb4 {[%emt 0:00:32]} Rg8 {[%emt 0:00:26]} 108. Rh4+ {[%emt 0:00:50]} Ne4 {[%emt 0:00:03]} 109. Kb5 {[%emt 0:00:11]} Rg6 {[%emt 0:00:16]} 110. Rf4 {[%emt 0:00:46]} Rh6 {[%emt 0:00:14]} 111. Rg4 {[%emt 0:00:17]} Kd5 {[%emt 0:00:06]} 112. Rg1 {[%emt 0:00:34]} Nc3+ {[%emt 0:01:21]} 113. Kb4 {[%emt 0:00:06]} Kd4 {[%emt 0:00:02]} 114. Rg4+ {[%emt 0:00:16]} Ne4 {[%emt 0:00:02]} 115. Kb5 {[%emt 0:00:24]} Rh8 {[%emt 0:00:05]} 116. Kc6 {[%emt 0:00:24]} Ke5 {[%emt 0:00:30]} 117. Rg1 {[%emt 0:00:21]} Ng3 {[%emt 0:00:25]} 118. Rxg3 1/2-1/2